fUSD/lending_fUSD_20250219
["ID","MTS","AMOUNT","RATE_DAILY","PERIOD"]
[353640508,1739977838124,-500.0,0.00013313,2]
[353640510,1739977838135,-500.0,0.00013313,2]
[353640511,1739977838145,-500.0,0.00013313,2]
[353640513,1739977838154,-500.0,0.00013313,2]
[353640515,1739977838165,-500.0,0.00013313,2]
[353640517,1739977838175,-500.0,0.00013313,2]
[353640519,1739977838186,-500.0,0.00013313,2]
[353640521,1739977838195,-500.0,0.00013313,2]
[353640523,1739977838205,-501.05340065,0.00013313,2]
[353640525,1739977838215,-500.0,0.00013313,2]
[353640526,1739977838226,-500.0,0.00013313,2]
[353640527,1739977838235,-500.0,0.00013313,2]
[353640528,1739977838245,-500.0,0.00013313,2]
[353640529,1739977838255,-500.0,0.00013313,2]
[353640530,1739977838266,-890.59,0.00013313,2]
[353640531,1739977838276,-500.0,0.00013313,2]
[353640532,1739977838287,-526.58599155,0.00013313,2]
[353640533,1739977838296,-500.0,0.00013313,2]
[353640534,1739977838306,-500.0,0.00013313,2]
[353640535,1739977838316,-501.06798191,0.00013313,2]
[353640536,1739977838326,-500.0,0.00013313,2]
[353640537,1739977838336,-500.0,0.00013313,2]
[353640538,1739977838346,-509.31181667,0.00013313,2]
[353640539,1739977838355,-500.0,0.00013313,2]
[353640540,1739977838366,-500.0,0.00013313,2]
[353640541,1739977838376,-500.0,0.00013313,2]
[353640542,1739977838386,-500.0,0.00013313,2]
[353640543,1739977838396,-1188.97,0.00013313,2]
[353640544,1739977838406,-500.0,0.00013313,2]
[353640545,1739977838416,-500.0,0.00013313,2]
[353640546,1739977838426,-500.7784514,0.00013313,2]
[353640547,1739977838435,-501.76312083,0.00013313,2]
[353640548,1739977838445,-500.0,0.00013313,2]
[353640549,1739977838455,-500.0,0.00013313,2]
[353640550,1739977838464,-500.0,0.00013313,2]
[353640551,1739977838474,-500.0,0.00013313,2]
[353640552,1739977838483,-500.77463396,0.00013313,2]
[353640553,1739977838493,-500.0,0.00013313,2]
[353640554,1739977838502,-500.0,0.00013313,2]
[353640555,1739977838511,-500.77888868,0.00013313,2]
[353640556,1739977838523,-500.0,0.00013313,2]
[353640557,1739977838534,-500.0,0.00013313,2]
[353640558,1739977838543,-500.0,0.00013313,2]
[353640559,1739977838553,-500.71569709,0.00013313,2]
[353640561,1739977838563,-500.0,0.00013313,2]
[353640563,1739977838573,-500.0,0.00013313,2]
[353640565,1739977838582,-500.0,0.00013313,2]
[353640567,1739977838591,-500.0,0.00013313,2]
[353640569,1739977838601,-508.21562468,0.00013313,2]
[353640571,1739977838611,-500.0,0.00013313,2]
[353640573,1739977838620,-500.0,0.00013313,2]
[353640575,1739977838630,-500.0,0.00013313,2]
[353640577,1739977838640,-500.0,0.00013313,2]
[353640579,1739977838650,-500.0,0.00013313,2]
[353640581,1739977838659,-500.0,0.00013313,2]
[353640583,1739977838669,-500.0,0.00013313,2]
[353640585,1739977838679,-500.0,0.00013313,2]
[353640587,1739977838689,-500.0,0.00013313,2]
[353640589,1739977838699,-502.54236898,0.00013313,2]
[353640591,1739977838709,-500.0,0.00013313,2]
[353640593,1739977838719,-500.0,0.00013313,2]
[353640595,1739977838729,-500.0,0.00013313,2]
[353640597,1739977838739,-500.0,0.00013313,2]
[353640599,1739977838749,-500.0,0.00013313,2]
[353640601,1739977838759,-500.0,0.00013313,2]
[353640603,1739977838770,-500.0,0.00013313,2]
[353640605,1739977838779,-500.0,0.00013313,2]
[353640607,1739977838789,-501.96117527,0.00013313,2]
[353640609,1739977838798,-500.0,0.00013313,2]
[353640611,1739977838808,-500.0,0.00013313,2]
[353640613,1739977838817,-500.0,0.00013313,2]
[353640615,1739977838827,-501.07498534,0.00013313,2]
[353640617,1739977838837,-500.0,0.00013313,2]
[353640619,1739977838846,-500.0,0.00013313,2]
[353640621,1739977838856,-500.0,0.00013313,2]
[353640623,1739977838866,-500.0,0.00013313,2]
[353640625,1739977838876,-500.0,0.00013313,2]
[353640627,1739977838885,-500.67879194,0.00013313,2]
[353640629,1739977838895,-500.0,0.00013313,2]
[353640631,1739977838904,-500.70882345,0.00013313,2]
[353640633,1739977838914,-500.0,0.00013313,2]
[353640635,1739977838923,-500.0,0.00013313,2]
[353640637,1739977838933,-500.0,0.00013313,2]
[353640639,1739977838943,-500.0,0.00013313,2]
[353640641,1739977838952,-500.0,0.00013313,2]
[353640643,1739977838961,-507.04461042,0.00013313,2]
[353640645,1739977838973,-500.0,0.00013313,2]
[353640647,1739977838982,-500.0,0.00013313,2]
[353640649,1739977839000,-500.0,0.00013313,2]
[353640651,1739977839010,-500.0,0.00013313,2]
[353640653,1739977839021,-500.0,0.00013313,2]
[353640655,1739977839030,-603.25,0.00013313,2]
[353640657,1739977839040,-499.72381361,0.00013313,2]
[353640659,1739977839050,-500.0,0.00013313,2]
[353640661,1739977839059,-500.52488688,0.00013313,2]
[353640663,1739977839069,-500.0,0.00013313,2]
[353640665,1739977839079,-500.0,0.00013313,2]
[353640667,1739977839088,-500.0,0.00013313,2]
[353640669,1739977839098,-500.0,0.00013313,2]
[353640671,1739977839107,-500.0,0.00013313,2]
[353640673,1739977839116,-500.0,0.00013313,2]
[353640675,1739977839127,-500.0,0.00013313,2]
[353640677,1739977839135,-500.0,0.00013313,2]
[353640679,1739977839145,-500.0,0.00013313,2]
[353640681,1739977839154,-500.0,0.00013313,2]
[353640683,1739977839163,-500.0,0.00013313,2]
[353640685,1739977839172,-211.332843,0.00013313,2]
[353640687,1739977839182,-511.48448514,0.00013313,2]
[353640689,1739977839191,-500.0,0.00013313,2]
[353640691,1739977839201,-500.0,0.00013313,2]
[353640693,1739977839210,-500.0,0.00013313,2]
[353640695,1739977839220,-500.0,0.00013313,2]
[353640696,1739977839229,-541.1,0.00013313,2]
[353640699,1739977839238,-500.0,0.00013313,2]
[353640700,1739977839248,-500.0,0.00013313,2]
[353640702,1739977839257,-500.0,0.00013313,2]
[353640704,1739977839267,-515.84812463,0.00013313,2]
[353640706,1739977839276,-500.0,0.00013313,2]
[353640708,1739977839286,-500.0,0.00013313,2]
[353640710,1739977839295,-500.31864885,0.00013313,2]
[353640712,1739977839304,-500.0,0.00013313,2]
[353640714,1739977839314,-717.64,0.00013313,2]
[353640716,1739977839322,-500.0,0.00013313,2]
[353640718,1739977839333,-500.0,0.00013313,2]
[353640720,1739977839342,-500.0,0.00013313,2]
[353640722,1739977839351,-500.0,0.00013313,2]
[353640724,1739977839360,-151.0,0.00013313,2]
[353640727,1739977839369,-500.0,0.00013313,2]
[353640729,1739977839379,-500.0,0.00013313,2]
[353640730,1739977839388,-231.53711881,0.00013313,2]
[353640901,1739977841168,-268.46288119,0.00013313,2]
[353640903,1739977841178,-500.0,0.00013313,2]
[353640905,1739977841188,-151.0,0.00013313,2]
[353640907,1739977841198,-500.0,0.00013313,2]
[353640909,1739977841207,-500.0,0.00013313,2]
[353640911,1739977841217,-1180.78,0.00013313,2]
[353640913,1739977841226,-500.0,0.00013313,2]
[353640915,1739977841236,-500.0,0.00013313,2]
[353640917,1739977841245,-500.0,0.00013313,2]
[353640919,1739977841254,-500.0,0.00013313,2]
[353640921,1739977841264,-500.0,0.00013313,2]
[353640923,1739977841278,-500.0,0.00013313,2]
[353640925,1739977841287,-500.0,0.00013313,2]
[353640927,1739977841297,-500.0,0.00013313,2]
[353640929,1739977841306,-500.56871475,0.00013313,2]
[353640931,1739977841316,-500.0,0.00013313,2]
[353640933,1739977841326,-552.94,0.00013313,2]
[353640935,1739977841335,-500.0,0.00013313,2]
[353640937,1739977841344,-500.0,0.00013313,2]
[353640939,1739977841353,-500.0,0.00013313,2]
[353640941,1739977841363,-500.0,0.00013313,2]
[353640943,1739977841372,-500.0,0.00013313,2]
[353640945,1739977841382,-500.0,0.00013313,2]
[353640946,1739977841390,-500.0,0.00013313,2]
[353640948,1739977841401,-500.0,0.00013313,2]
[353640950,1739977841411,-500.0,0.00013313,2]
[353640952,1739977841421,-501.81776813,0.00013313,2]
[353640954,1739977841430,-505.93038607,0.00013313,2]
[353640956,1739977841440,-500.0,0.00013313,2]
[353640958,1739977841449,-500.0,0.00013313,2]
[353640961,1739977841459,-758.53,0.00013313,2]
[353640962,1739977841469,-500.0,0.00013313,2]
[353640965,1739977841481,-500.0,0.00013313,2]
[353640966,1739977841490,-500.0,0.00013313,2]
[353640968,1739977841499,-500.0,0.00013313,2]
[353640970,1739977841509,-500.0,0.00013313,2]
[353640972,1739977841522,-502.58259667,0.00013313,2]
[353640974,1739977841532,-500.0,0.00013313,2]
[353640976,1739977841542,-500.0,0.00013313,2]
[353640979,1739977841551,-277.38015964,0.00013313,2]
[353640980,1739977841561,-500.0,0.00013313,2]
[353640982,1739977841571,-500.0,0.00013313,2]
[353640984,1739977841581,-500.0,0.00013313,2]
[353640986,1739977841591,-500.0,0.00013313,2]
[353640988,1739977841600,-500.0,0.00013313,2]
[353640990,1739977841610,-500.0,0.00013313,2]
[353640992,1739977841619,-500.0,0.00013313,2]
[353640994,1739977841628,-500.0,0.00013313,2]
[353640996,1739977841638,-503.24398868,0.00013313,2]
[353640998,1739977841648,-500.0,0.00013313,2]
[353641000,1739977841657,-289.1770196,0.00013313,2]
[353641003,1739977841670,-1016.7929804,0.00013313,2]
[353641005,1739977841679,-636.17748975,0.00013313,2]
[353641007,1739977841689,-388.95674528,0.00013313,2]
[353641009,1739977841698,-500.0,0.00013313,2]
[353641011,1739977841707,-500.0,0.00013313,2]
[353641013,1739977841717,-500.44121385,0.00013313,2]
[353641015,1739977841726,-500.0,0.00013313,2]
[353641017,1739977841735,-393.51967789,0.00013313,2]
[353641019,1739977841744,-500.0,0.00013313,2]
[353641021,1739977841754,-500.0,0.00013313,2]
[353641023,1739977841763,-500.0,0.00013313,2]
[353641025,1739977841775,-500.0,0.00013313,2]
[353641027,1739977841784,-474.31189283,0.00013313,2]
[353641029,1739977841797,-25.68810717,0.00013313,2]
[353641031,1739977841807,-500.0,0.00013313,2]
[353641033,1739977841818,-500.0,0.00013313,2]
[353641035,1739977841829,-550.49362388,0.00013313,2]
[353641037,1739977841839,-532.83529681,0.00013313,2]
[353641039,1739977841849,-500.0,0.00013313,2]
[353641041,1739977841860,-500.0,0.00013313,2]
[353641043,1739977841870,-501.85534149,0.00013313,2]
[353641045,1739977841881,-738.57,0.00013313,2]
[353641047,1739977841891,-500.0,0.00013313,2]
[353641049,1739977841901,-873.09,0.00013313,2]
[353641051,1739977841911,-502.52454328,0.00013313,2]
[353641053,1739977841920,-500.0,0.00013313,2]
[353641055,1739977841930,-208.76,0.00013313,2]
[353641057,1739977841940,-500.0,0.00013313,2]
[353641059,1739977841950,-500.0,0.00013313,2]
[353641061,1739977841960,-500.0,0.00013313,2]
[353641063,1739977841971,-500.0,0.00013313,2]
[353641065,1739977841981,-1225.51,0.00013313,2]
[353641067,1739977841990,-650.11,0.00013313,2]
[353641069,1739977842002,-500.0,0.00013313,2]
[353641071,1739977842014,-500.0,0.00013313,2]
[353641073,1739977842026,-500.0,0.00013313,2]
[353641075,1739977842036,-502.7901147,0.00013313,2]
[353641077,1739977842047,-500.0,0.00013313,2]
[353641079,1739977842057,-1984.24,0.00013313,2]
[353641081,1739977842067,-500.0,0.00013313,2]
[353641083,1739977842077,-500.0,0.00013313,2]
[353641085,1739977842087,-496.0,0.00013313,2]
[353641087,1739977842099,-500.0,0.00013313,2]
[353641089,1739977842108,-500.0,0.00013313,2]
[353641091,1739977842117,-500.0,0.00013313,2]
[353641093,1739977842127,-500.0,0.00013313,2]
[353641095,1739977842137,-500.0,0.00013313,2]
[353641096,1739977842147,-731.47,0.00013313,2]
[353641098,1739977842156,-500.0,0.00013313,2]
[353641100,1739977842166,-500.0,0.00013313,2]
[353641102,1739977842176,-500.0,0.00013313,2]
[353641104,1739977842187,-503.51237108,0.00013313,2]
[353641106,1739977842196,-2456.54,0.00013313,2]
[353641108,1739977842206,-500.0,0.00013313,2]
[353641110,1739977842216,-283.012925,0.00013313,2]
[353641112,1739977842225,-500.4673925,0.00013313,2]
[353641114,1739977842235,-870.12,0.00013313,2]
[353641116,1739977842244,-500.0,0.00013313,2]
[353641118,1739977842255,-500.0,0.00013313,2]
[353641120,1739977842264,-500.0,0.00013313,2]
[353641122,1739977842276,-722.94,0.00013313,2]
[353641124,1739977842286,-500.0,0.00013313,2]
[353641126,1739977842296,-283.012925,0.00013313,2]
[353641128,1739977842307,-500.0,0.00013313,2]
[353641130,1739977842317,-505.45602444,0.00013313,2]
[353641132,1739977842327,-500.0,0.00013313,2]
[353641134,1739977842337,-636.13,0.00013313,2]
[353641136,1739977842347,-500.0,0.00013313,2]
[353641138,1739977842357,-176.7473867,0.00013313,2]
[353641140,1739977842368,-21.65611244,0.00013313,2]
[353641142,1739977842381,-478.34388756,0.00013313,2]
[353641144,1739977842391,-500.0,0.00013313,2]
[353641146,1739977842402,-500.0,0.00013313,2]
[353641148,1739977842412,-501.22483022,0.00013313,2]
[353641150,1739977842422,-87.65106788,0.00013313,2]
[353641152,1739977842434,-1217.63557993,0.00013313,2]
[353641155,1739977842446,-225.93335219,0.00013313,2]
[353641156,1739977842456,-500.0,0.00013313,2]
[353641159,1739977842467,-666.13,0.00013313,2]
[353641160,1739977842477,-500.0,0.00013313,2]
[353641162,1739977842487,-2798.580474,0.00013313,2]
[353641164,1739977842496,-819.26,0.00013313,2]
[353641167,1739977842506,-500.0,0.00013313,2]
[353641168,1739977842516,-500.0,0.00013313,2]
[353641170,1739977842527,-3582.01,0.00013313,2]
[353641174,1739977842538,-500.0,0.00013313,2]
[353641176,1739977842547,-500.0,0.00013313,2]
[353641178,1739977842558,-2798.580474,0.00013313,2]
[353641181,1739977842568,-500.0,0.00013313,2]
[353641184,1739977842579,-35.79827989,0.00013313,2]
[353641188,1739977842592,-468.73280567,0.00013313,2]
[353641192,1739977842603,-500.0,0.00013313,2]
[353641195,1739977842613,-500.0,0.00013313,2]
[353641200,1739977842622,-500.0,0.00013313,2]
[353641202,1739977842632,-500.0,0.00013313,2]
[353641205,1739977842642,-500.0,0.00013313,2]
[353641208,1739977842651,-2401.3,0.00013313,2]
[353641211,1739977842662,-500.0,0.00013313,2]
[353641213,1739977842672,-191.48879981,0.00013313,2]
[353641215,1739977842685,-597.41120019,0.00013313,2]
[353641217,1739977842694,-1028.88,0.00013313,2]
[353641218,1739977842704,-63.01887761,0.00013313,2]
[353641248,1739977843111,-438.63686014,0.00013313,2]
[353641250,1739977843121,-500.0,0.00013313,2]
[353641253,1739977843131,-151.0,0.00013313,2]
[353641256,1739977843141,-4312.56,0.00013313,2]
[353641259,1739977843152,-500.0,0.00013313,2]
[353641261,1739977843162,-500.0,0.00013313,2]
[353641264,1739977843172,-941.96,0.00013313,2]
[353641268,1739977843181,-639.74,0.00013313,2]
[353641272,1739977843192,-628.89370761,0.00013313,2]
[353641276,1739977843202,-498.4213162,0.00013313,2]
[353641279,1739977843211,-500.0,0.00013313,2]
[353641282,1739977843221,-1979.74,0.00013313,2]
[353641285,1739977843230,-771.72,0.00013313,2]
[353641288,1739977843240,-4012.22,0.00013313,2]
[353641290,1739977843249,-516.54,0.00013313,2]
[353641292,1739977843259,-500.0,0.00013313,2]
[353641294,1739977843270,-500.0,0.00013313,2]
[353641296,1739977843281,-165.472612,0.00013313,2]
[353641298,1739977843291,-1642.07,0.00013313,2]
[353641300,1739977843301,-165.472612,0.00013313,2]
[353641302,1739977843311,-494.60198198,0.00013313,2]
[353641304,1739977843320,-500.0,0.00013313,2]
[353641306,1739977843330,-1329.02,0.00013313,2]
[353641308,1739977843340,-500.0,0.00013313,2]
[353641310,1739977843350,-1364.95,0.00013313,2]
[353641312,1739977843360,-165.472612,0.00013313,2]
[353641314,1739977843370,-165.472612,0.00013313,2]
[353641316,1739977843380,-3944.3,0.00013313,2]
[353641318,1739977843390,-500.0,0.00013313,2]
[353641320,1739977843399,-501.73181401,0.00013313,2]
[353641322,1739977843409,-500.0,0.00013313,2]
[353641324,1739977843419,-500.0,0.00013313,2]
[353641326,1739977843428,-2827.7,0.00013313,2]
[353641328,1739977843438,-781.53,0.00013313,2]
[353641330,1739977843447,-500.0,0.00013313,2]
[353641332,1739977843457,-2963.62,0.00013313,2]
[353641334,1739977843467,-500.0,0.00013313,2]
[353641336,1739977843478,-505.05187748,0.00013313,2]
[353641338,1739977843489,-500.0,0.00013313,2]
[353641340,1739977843498,-500.0,0.00013313,2]
[353641342,1739977843508,-500.0,0.00013313,2]
[353641344,1739977843518,-2818.04,0.00013313,2]
[353641346,1739977843530,-500.0,0.00013313,2]
[353641348,1739977843539,-887.62,0.00013313,2]
[353641350,1739977843549,-500.0,0.00013313,2]
[353641352,1739977843558,-269.74555598,0.00013313,2]
[353641354,1739977843568,-500.0,0.00013313,2]
[353641356,1739977843578,-500.0,0.00013313,2]
[353641358,1739977843588,-500.0,0.00013313,2]
[353641360,1739977843599,-1272.0,0.00013313,2]
[353641362,1739977843609,-500.0,0.00013313,2]
[353641364,1739977843619,-500.0,0.00013313,2]
[353641366,1739977843629,-500.0,0.00013313,2]
[353641368,1739977843638,-2228.65,0.00013313,2]
[353641370,1739977843648,-500.0,0.00013313,2]
[353641372,1739977843658,-789.08,0.00013313,2]
[353641374,1739977843667,-500.0,0.00013313,2]
[353641376,1739977843677,-2253.77,0.00013313,2]
[353641378,1739977843687,-500.0,0.00013313,2]
[353641380,1739977843696,-1199.6,0.00013313,2]
[353641382,1739977843706,-501.36275635,0.00013313,2]
[353641405,1739977843940,-605.15,0.00013313,2]
[353641408,1739977843956,-502.30810413,0.00013313,2]
[353641410,1739977843966,-2332.63,0.00013313,2]
[353641412,1739977843976,-500.0,0.00013313,2]
[353641414,1739977843986,-585.9,0.00013313,2]
[353641416,1739977843998,-198.003828,0.00013313,2]
[353641418,1739977844013,-198.003828,0.00013313,2]
[353641420,1739977844024,-198.003828,0.00013313,2]
[353641422,1739977844034,-561.93246369,0.00013313,2]
[353641424,1739977844045,-198.003828,0.00013313,2]
[353641426,1739977844055,-500.0,0.00013313,2]
[353641428,1739977844064,-531.38,0.00013313,2]
[353641430,1739977844073,-500.0,0.00013313,2]
[353641432,1739977844085,-198.003828,0.00013313,2]
[353641434,1739977844095,-500.0,0.00013313,2]
[353641436,1739977844105,-198.003828,0.00013313,2]
[353641438,1739977844114,-198.003828,0.00013313,2]
[353641440,1739977844123,-643.35,0.00013313,2]
[353641442,1739977844133,-500.70398151,0.00013313,2]
[353641444,1739977844142,-198.003828,0.00013313,2]
[353641446,1739977844152,-500.0,0.00013313,2]
[353641448,1739977844162,-500.0,0.00013313,2]
[353641450,1739977844172,-500.0,0.00013313,2]
[353641452,1739977844182,-500.0,0.00013313,2]
[353641454,1739977844192,-500.52902449,0.00013313,2]
[353641456,1739977844202,-500.0,0.00013313,2]
[353641458,1739977844212,-500.0,0.00013313,2]
[353641460,1739977844222,-881.71,0.00013313,2]
[353641462,1739977844232,-472.07861443,0.00013313,2]
[353641464,1739977844241,-500.0,0.00013313,2]
[353641466,1739977844251,-501.22687295,0.00013313,2]
[353641468,1739977844262,-2779.3,0.00013313,2]
[353641470,1739977844271,-1361.63,0.00013313,2]
[353641471,1739977844285,-573.94,0.00013313,2]
[353641474,1739977844295,-507.03117194,0.00013313,2]
[353641475,1739977844304,-540.5,0.00013313,2]
[353641477,1739977844314,-500.0,0.00013313,2]
[353641479,1739977844324,-515.33688995,0.00013313,2]
[353641482,1739977844333,-500.0,0.00013313,2]
[353641483,1739977844343,-865.37,0.00013313,2]
[353641486,1739977844353,-510.49549029,0.00013313,2]
[353641488,1739977844364,-500.0,0.00013313,2]
[353641490,1739977844374,-500.0,0.00013313,2]
[353641492,1739977844385,-500.0,0.00013313,2]
[353641493,1739977844394,-779.72,0.00013313,2]
[353641495,1739977844404,-949.8,0.00013313,2]
[353641498,1739977844414,-1222.38,0.00013313,2]
[353641500,1739977844424,-504.89483573,0.00013313,2]
[353641502,1739977844433,-500.0,0.00013313,2]
[353641504,1739977844443,-500.79430067,0.00013313,2]
[353641506,1739977844452,-500.0,0.00013313,2]
[353641508,1739977844462,-811.5,0.00013313,2]
[353641510,1739977844472,-457.40305692,0.00013313,2]
[353641512,1739977844481,-500.0,0.00013313,2]
[353641514,1739977844491,-500.0,0.00013313,2]
[353641516,1739977844500,-202.169164,0.00013313,2]
[353641518,1739977844510,-202.169164,0.00013313,2]
[353641520,1739977844519,-500.0,0.00013313,2]
[353641522,1739977844534,-535.73141106,0.00013313,2]
[353641524,1739977844543,-604.18782229,0.00013313,2]
[353641526,1739977844553,-202.169164,0.00013313,2]
[353641528,1739977844563,-202.169164,0.00013313,2]
[353641530,1739977844572,-981.09,0.00013313,2]
[353641532,1739977844582,-500.0,0.00013313,2]
[353641534,1739977844591,-500.0,0.00013313,2]
[353641536,1739977844601,-500.0,0.00013313,2]
[353641538,1739977844610,-500.0,0.00013313,2]
[353641540,1739977844620,-343.52201852,0.00013313,2]
[353641542,1739977844629,-500.0,0.00013313,2]
[353641544,1739977844638,-2112.79,0.00013313,2]
[353641546,1739977844647,-508.52046026,0.00013313,2]
[353641548,1739977844656,-504.89439029,0.00013313,2]
[353641550,1739977844665,-500.0,0.00013313,2]
[353641552,1739977844674,-500.0,0.00013313,2]
[353641554,1739977844683,-500.0,0.00013313,2]
[353641556,1739977844692,-500.0,0.00013313,2]
[353641557,1739977844703,-500.0,0.00013313,2]
[353641559,1739977844712,-775.72,0.00013313,2]
[353641561,1739977844721,-500.0,0.00013313,2]
[353641563,1739977844730,-500.0,0.00013313,2]
[353641565,1739977844740,-2243.9,0.00013313,2]
[353641567,1739977844750,-500.0,0.00013313,2]
[353641569,1739977844759,-500.0,0.00013313,2]
[353641571,1739977844768,-544.63328972,0.00013313,2]
[353641573,1739977844780,-574.56,0.00013313,2]
[353641575,1739977844790,-500.0,0.00013313,2]
[353641577,1739977844800,-500.0,0.00013313,2]
[353641579,1739977844809,-1620.38,0.00013313,2]
[353641581,1739977844819,-500.0,0.00013313,2]
[353641583,1739977844829,-500.0,0.00013313,2]
[353641585,1739977844839,-1281.79,0.00013313,2]
[353641587,1739977844849,-500.0,0.00013313,2]
[353641589,1739977844858,-500.0,0.00013313,2]
[353641591,1739977844868,-500.0,0.00013313,2]
[353641593,1739977844877,-535.94,0.00013313,2]
[353641595,1739977844886,-510.28665307,0.00013313,2]
[353641597,1739977844896,-500.0,0.00013313,2]
[353641599,1739977844906,-508.29993625,0.00013313,2]
[353641601,1739977844915,-500.0,0.00013313,2]
[353641603,1739977844924,-500.0,0.00013313,2]
[353641605,1739977844934,-439.67181933,0.00013313,2]
[353641618,1739977845070,-60.32818067,0.00013313,2]
[353641619,1739977845081,-150.0,0.00013316,2]
[353641620,1739977845090,-151.0,0.00013318,2]
[353641621,1739977845099,-267.90868985,0.00013318,2]
[353641670,1739977845569,-229.97602215,0.00013318,2]
[353641672,1739977845579,-497.884712,0.00013318,2]
[353641674,1739977845588,-151.0,0.00013318,2]
[353641676,1739977845598,-151.0,0.00013318,2]
[353641678,1739977845607,-151.0,0.00013318,2]
[353641680,1739977845616,-283.012925,0.00013318,2]
[353641682,1739977845626,-1319.19,0.00013318,2]
[353641684,1739977845635,-283.012925,0.00013318,2]
[353641686,1739977845645,-2493.19,0.00013318,2]
[353641688,1739977845654,-2798.580474,0.00013318,2]
[353641690,1739977845663,-2433.72,0.00013318,2]
[353641692,1739977845672,-2798.580474,0.00013318,2]
[353641694,1739977845682,-2825.67,0.00013318,2]
[353641696,1739977845691,-151.0,0.00013318,2]
[353641698,1739977845700,-1823.81,0.00013318,2]
[353641700,1739977845709,-2712.26,0.00013318,2]
[353641702,1739977845719,-3485.79,0.00013318,2]
[353641704,1739977845728,-165.472612,0.00013318,2]
[353641706,1739977845737,-7188.2,0.00013318,2]
[353641708,1739977845746,-165.472612,0.00013318,2]
[353641710,1739977845755,-1516.13,0.00013318,2]
[353641712,1739977845765,-1625.36,0.00013318,2]
[353641714,1739977845774,-1388.54,0.00013318,2]
[353641716,1739977845786,-804.26,0.00013318,2]
[353641718,1739977845795,-1780.96,0.00013318,2]
[353641720,1739977845804,-2125.53,0.00013318,2]
[353641722,1739977845813,-2257.62,0.00013318,2]
[353641724,1739977845822,-202.169164,0.00013318,2]
[353641726,1739977845831,-202.169164,0.00013318,2]
[353641728,1739977845840,-1909.15,0.00013318,2]
[353641730,1739977845850,-2395.34,0.00013318,2]
[353641732,1739977845859,-591.51,0.00013318,2]
[353641734,1739977845869,-630.82,0.00013318,2]
[353641736,1739977845878,-175.61013547,0.00013319,2]
[353641738,1739977845890,-497.70986453,0.00013319,2]
[353641740,1739977845899,-724.71,0.00013319,2]
[353641742,1739977845908,-1038.34,0.00013319,2]
[353641744,1739977845918,-500.0,0.00013319,2]
[353641746,1739977845927,-506.346357,0.00013319,2]
[353641747,1739977845937,-506.346357,0.00013319,2]
[353641750,1739977845947,-1030.35,0.00013319,2]
[353641751,1739977845956,-500.0,0.00013319,2]
[353641754,1739977845966,-1436.83,0.00013319,2]
[353641755,1739977845975,-500.0,0.00013319,2]
[353641758,1739977845985,-500.0,0.00013319,2]
[353641760,1739977845995,-921.67,0.00013319,2]
[353641761,1739977846007,-331.330825,0.00013319,2]
[353641764,1739977846017,-331.330825,0.00013319,2]
[353641765,1739977846028,-981.2,0.00013319,2]
[353641768,1739977846038,-584.3,0.00013319,2]
[353641770,1739977846049,-871.97,0.00013319,2]